fUSD/lending_fUSD_20240104
["ID","MTS","AMOUNT","RATE_DAILY","PERIOD"]
[310110561,1704349853432,-3398.57,0.00033698,2]
[310110562,1704349853441,-500.0,0.00033698,2]
[310110563,1704349853451,-500.0,0.00033698,2]
[310110564,1704349853461,-500.0,0.00033698,2]
[310110565,1704349853470,-736.91,0.00033698,2]
[310110566,1704349853484,-652.15,0.00033698,2]
[310110567,1704349853493,-500.0,0.00033698,2]
[310110568,1704349853502,-500.0,0.00033698,2]
[310110569,1704349853511,-500.0,0.00033698,2]
[310110570,1704349853521,-500.0,0.00033698,2]
[310110571,1704349853530,-1606.4,0.00033698,2]
[310110572,1704349853540,-563.9,0.00033698,2]
[310110573,1704349853550,-500.0,0.00033698,2]
[310110574,1704349853560,-500.0,0.00033698,2]
[310110575,1704349853569,-500.0,0.00033698,2]
[310110576,1704349853579,-1352.7,0.00033698,2]
[310110577,1704349853589,-500.0,0.00033698,2]
[310110578,1704349853598,-4481.83,0.00033698,2]
[310110579,1704349853608,-500.0,0.00033698,2]
[310110580,1704349853617,-500.0,0.00033698,2]
[310110581,1704349853626,-500.0,0.00033698,2]
[310110582,1704349853636,-500.0,0.00033698,2]
[310110583,1704349853645,-500.0,0.00033698,2]
[310110584,1704349853656,-308.85287053,0.00033698,2]
[310110585,1704349853665,-500.0,0.00033698,2]
[310110586,1704349853674,-5182.76,0.00033698,2]
[310110587,1704349853683,-953.44,0.00033698,2]
[310110588,1704349853692,-500.0,0.00033698,2]
[310110589,1704349853702,-532.04397983,0.00033698,2]
[310110590,1704349853711,-500.0,0.00033698,2]
[310110591,1704349853721,-770.89,0.00033698,2]
[310110592,1704349853731,-500.0,0.00033698,2]
[310110593,1704349853741,-500.0,0.00033698,2]
[310110594,1704349853750,-500.0,0.00033698,2]
[310110595,1704349853760,-724.76,0.00033698,2]
[310110596,1704349853769,-500.0,0.00033698,2]
[310110597,1704349853778,-500.0,0.00033698,2]
[310110598,1704349853791,-2404.95,0.00033698,2]
[310110599,1704349853801,-500.0,0.00033698,2]
[310110600,1704349853810,-543.39953834,0.00033698,2]
[310110601,1704349853819,-3912.6,0.00033698,2]
[310110602,1704349853829,-1354.54,0.00033698,2]
[310110603,1704349853838,-2195.14,0.00033698,2]
[310110604,1704349853847,-273.0239987,0.00033698,2]
[310110605,1704349853856,-683.76,0.00033698,2]
[310110606,1704349853865,-2714.72,0.00033698,2]
[310110607,1704349853875,-898.43,0.00033698,2]
[310110608,1704349853885,-500.0,0.00033698,2]
[310110609,1704349853894,-500.0,0.00033698,2]
[310110610,1704349853906,-934.24,0.00033698,2]
[310110611,1704349853915,-500.0,0.00033698,2]
[310110612,1704349853924,-500.0,0.00033698,2]
[310110613,1704349853933,-1236.58,0.00033698,2]
[310110614,1704349853943,-500.0,0.00033698,2]
[310110615,1704349853952,-589.43984339,0.00033698,2]
[310110616,1704349853961,-1981.7,0.00033698,2]
[310110617,1704349853970,-331.05686376,0.00033698,2]
[310110618,1704349853980,-500.0,0.00033698,2]
[310110619,1704349853989,-500.0,0.00033698,2]
[310110620,1704349853999,-1139.34,0.00033698,2]
[310110621,1704349854009,-1117.56,0.00033698,2]
[310110622,1704349854018,-852.6,0.00033698,2]
[310110623,1704349854028,-500.0,0.00033698,2]
[310110624,1704349854037,-500.0,0.00033698,2]
[310110625,1704349854046,-748.14,0.00033698,2]
[310110626,1704349854056,-964.4,0.00033698,2]
[310110627,1704349854065,-1575.24,0.00033698,2]
[310110628,1704349854075,-799.05,0.00033698,2]
[310110629,1704349854084,-500.0,0.00033698,2]
[310110630,1704349854093,-3995.77,0.00033698,2]
[310110631,1704349854102,-500.0,0.00033698,2]
[310110632,1704349854112,-500.0,0.00033698,2]
[310110633,1704349854122,-500.0,0.00033698,2]
[310110634,1704349854131,-1339.41,0.00033698,2]
[310110635,1704349854140,-500.0,0.00033698,2]
[310110636,1704349854150,-776.16,0.00033698,2]
[310110637,1704349854159,-500.0,0.00033698,2]
[310110638,1704349854169,-561.55,0.00033698,2]
[310110639,1704349854178,-500.0,0.00033698,5]
[310110640,1704349854188,-500.0,0.00033698,2]
[310110641,1704349854197,-500.0,0.00033698,2]
[310110642,1704349854206,-1296.51,0.00033698,2]
[310110643,1704349854216,-5049.51,0.00033698,2]
[310110644,1704349854225,-652.68,0.00033698,2]
[310110645,1704349854235,-500.0,0.00033698,2]
[310110646,1704349854243,-500.0,0.00033698,2]
[310110647,1704349854253,-500.0,0.00033698,2]
[310110648,1704349854262,-644.93,0.00033698,2]
[310110649,1704349854271,-500.0,0.00033698,2]
[310110650,1704349854280,-500.0,0.00033698,2]
[310110651,1704349854289,-500.0,0.00033698,2]
[310110652,1704349854299,-10515.77,0.00033698,2]
[310110653,1704349854308,-500.0,0.00033698,2]
[310110654,1704349854317,-500.0,0.00033698,2]
[310110655,1704349854326,-5402.63,0.00033698,2]
[310110656,1704349854336,-500.0,0.00033698,2]
[310110657,1704349854345,-624.73,0.00033698,2]
[310110658,1704349854354,-2900.89,0.00033698,2]
[310110659,1704349854363,-364.5,0.00033698,7]
[310110660,1704349854372,-364.5,0.00033698,7]
[310110661,1704349854382,-161.7591626,0.00033699,2]
[310110662,1704349854391,-281.13038043,0.00033699,2]
[310110663,1704349854400,-371.13614266,0.00033699,2]
[310110664,1704349854410,-387.02235173,0.00033699,2]
[310110665,1704349854419,-174.66001112,0.00033699,2]
[310110666,1704349854428,-403.88020453,0.000337,2]
[310110667,1704349854437,-2152.5442638,0.000337,2]
[310110668,1704349854446,-2386.8546269,0.000337,2]
[310110669,1704349854456,-5958.810127,0.000337,2]
[310110670,1704349854465,-300.0,0.000337,7]
[310110671,1704349854474,-311.8412544,0.000337,2]
[310110672,1704349854483,-247.79798549,0.00033757,6]
[310110673,1704349854493,-161.61334419,0.00033763,2]
[310110674,1704349854502,-183.139134,0.00033777,7]
[310110675,1704349854511,-183.139134,0.00033777,7]
[310110676,1704349854521,-151.0,0.00033777,7]
[310110677,1704349854530,-982.7535487,0.00033777,2]
[310110678,1704349854539,-121212.3727504,0.00033777,2]
[310110679,1704349854549,-5324.7665329,0.00033777,2]
[310110680,1704349854558,-230.1,0.00033784,2]
[310110681,1704349854568,-223.16,0.00033794,2]
[310110682,1704349854577,-157.40104,0.00033798,2]
[310110683,1704349854586,-500.0,0.000338,20]
[310110684,1704349854595,-157.52,0.000338,2]
[310110685,1704349854604,-157.52,0.000338,2]
[310110686,1704349854613,-12540.61,0.000338,2]
[310110687,1704349854623,-12540.61,0.000338,2]
[310110688,1704349854632,-12540.61,0.000338,2]
[310110689,1704349854642,-12540.61,0.000338,2]
[310110690,1704349854651,-12540.61,0.000338,2]
[310110691,1704349854661,-12540.61,0.000338,2]
[310110692,1704349854670,-12540.61,0.000338,2]
[310110693,1704349854679,-12540.61,0.000338,2]
[310110694,1704349854689,-12540.61,0.000338,2]
[310110695,1704349854699,-12540.61,0.000338,2]
[310110696,1704349854708,-12540.61,0.000338,2]
[310110697,1704349854718,-12540.61,0.000338,2]
[310110698,1704349854727,-12540.61,0.000338,2]
[310110699,1704349854737,-12540.61,0.000338,2]
[310110700,1704349854746,-12540.61,0.000338,2]
[310110701,1704349854755,-12540.61,0.000338,2]
[310110702,1704349854764,-12540.61,0.000338,2]
[310110703,1704349854773,-12540.61,0.000338,2]
[310110704,1704349854782,-12540.61,0.000338,2]
[310110705,1704349854791,-12540.61,0.000338,2]
[310110706,1704349854801,-151.791444,0.00033805,2]
[310110707,1704349854810,-153.84,0.00033814,2]
[310110708,1704349854819,-880.23,0.00033835,2]
[310110709,1704349854828,-754.22427649,0.00033844,5]
[310110710,1704349854837,-150.0,0.00033875,2]
[310110711,1704349854846,-3448.0271994,0.00033891,6]
[310110712,1704349854856,-157.40104,0.00033898,2]
[310110713,1704349854865,-154.59,0.00033899,2]
[310110714,1704349854874,-449.0,0.000339,23]
[310110715,1704349854883,-20352.9731809,0.0003391,2]
[310110716,1704349854893,-151.0,0.0003391,7]
[310110717,1704349854906,-1664.6917473,0.00033915,2]
[310110718,1704349854915,-227.2794303,0.00033916,6]
[310110719,1704349854924,-1046.61,0.00033922,2]
[310110720,1704349854933,-440.07,0.00033924,2]
[310110721,1704349854942,-183.139134,0.00033933,7]
[310110722,1704349854952,-183.139133,0.00033933,7]
[310110723,1704349854961,-849.3223976,0.00033933,2]
[310110724,1704349854970,-104755.0356701,0.00033933,2]
[310110725,1704349854979,-4601.8083421,0.00033933,2]
[310110726,1704349854987,-500.0,0.00033946,3]
[310110727,1704349854997,-500.0,0.00033954,3]
[310110728,1704349855006,-549.21,0.00033957,2]
[310110729,1704349855015,-500.0,0.00033963,3]
[310110730,1704349855024,-2000.0,0.00033965,2]
[310110731,1704349855033,-23924.072016,0.00033965,2]
[310110732,1704349855042,-371.296954,0.00033965,2]
[310110733,1704349855052,-75587.77809827,0.0003397,10]
[310110734,1704349855061,-104749.6,0.0003397,3]
[310110735,1704349855071,-500.0,0.00033972,2]
[310110736,1704349855080,-1105.69,0.00033972,2]
[310110737,1704349855089,-500.0,0.00033972,3]
[310110738,1704349855099,-500.0,0.00033972,2]
[310110739,1704349855108,-500.0,0.00033972,2]
[310110740,1704349855117,-500.0,0.00033972,2]
[310110741,1704349855126,-523.01,0.00033972,2]
[310110742,1704349855135,-500.0,0.00033972,2]
[310110743,1704349855145,-1243.37,0.00033972,2]
[310110744,1704349855155,-500.0,0.00033972,2]
[310110745,1704349855164,-500.0,0.00033972,2]
[310110746,1704349855174,-981.28,0.00033972,2]
[310110747,1704349855183,-500.0,0.00033972,2]
[310110748,1704349855193,-500.0,0.00033972,2]
[310110749,1704349855202,-500.0,0.00033972,2]
[310110750,1704349855211,-500.0,0.00033972,2]
[310110751,1704349855221,-500.0,0.00033972,2]
[310110752,1704349855230,-500.0,0.00033972,2]
[310110753,1704349855240,-500.0,0.00033972,2]
[310110754,1704349855249,-500.0,0.00033972,2]
[310110755,1704349855259,-762.65,0.00033972,2]
[310110756,1704349855269,-500.0,0.00033972,2]
[310110757,1704349855278,-500.0,0.00033972,2]
[310110758,1704349855288,-500.0,0.00033972,2]
[310110759,1704349855298,-500.0,0.00033972,2]
[310110760,1704349855307,-500.0,0.00033972,2]
[310110761,1704349855316,-639.89,0.00033972,2]
[310110762,1704349855326,-500.0,0.00033972,2]
[310110763,1704349855335,-500.0,0.00033972,2]
[310110764,1704349855345,-500.0,0.00033972,2]
[310110765,1704349855354,-500.0,0.00033972,2]
[310110766,1704349855363,-527.61,0.00033972,2]
[310110767,1704349855373,-500.0,0.00033972,2]
[310110768,1704349855383,-500.0,0.00033972,2]
[310110769,1704349855392,-500.0,0.00033972,2]
[310110770,1704349855401,-500.0,0.00033972,2]
[310110771,1704349855411,-500.0,0.00033972,2]
[310110772,1704349855420,-500.0,0.00033972,2]
[310110773,1704349855430,-500.0,0.00033972,2]
[310110774,1704349855439,-500.0,0.00033972,2]
[310110775,1704349855449,-500.0,0.00033972,2]
[310110776,1704349855458,-500.0,0.00033972,2]
[310110777,1704349855468,-500.0,0.00033972,2]
[310110778,1704349855478,-258.80802009,0.00033972,2]
[310110779,1704349855487,-500.0,0.00033972,2]
[310110780,1704349855498,-500.0,0.00033972,2]
[310110781,1704349855508,-500.0,0.00033972,2]
[310110782,1704349855517,-840.26,0.00033972,2]
[310110783,1704349855526,-463.38517283,0.00033972,2]
[310110784,1704349855536,-507.41238839,0.00033972,2]
[310110785,1704349855545,-500.0,0.00033972,2]
[310110786,1704349855555,-514.28300836,0.00033972,2]
[310110787,1704349855564,-500.0,0.00033972,2]
[310110788,1704349855574,-500.0,0.00033972,2]
[310110789,1704349855583,-500.0,0.00033972,2]
[310110790,1704349855593,-500.0,0.00033972,2]
[310110791,1704349855602,-390.80190139,0.00033972,2]
[310110792,1704349855611,-500.0,0.00033972,2]
[310110793,1704349855621,-500.0,0.00033972,2]
[310110794,1704349855630,-500.0,0.00033972,2]
[310110795,1704349855640,-500.0,0.00033972,2]
[310110796,1704349855649,-500.0,0.00033972,2]
[310110797,1704349855659,-500.0,0.00033972,2]
[310110798,1704349855668,-500.0,0.00033972,2]
[310110799,1704349855678,-500.0,0.00033972,2]
[310110800,1704349855688,-1684.0,0.00033972,2]
[310110801,1704349855697,-519.96749976,0.00033972,2]
[310110802,1704349855706,-500.0,0.00033972,2]
[310110803,1704349855716,-500.0,0.00033972,2]
[310110804,1704349855725,-500.0,0.00033972,2]
[310110805,1704349855735,-500.0,0.00033972,2]
[310110806,1704349855745,-500.0,0.00033972,2]
[310110807,1704349855754,-548.67,0.00033972,2]
[310110808,1704349855763,-500.0,0.00033972,2]
[310110809,1704349855773,-500.0,0.00033972,2]
[310110810,1704349855782,-500.0,0.00033972,2]
[310110811,1704349855791,-1184.96,0.00033972,2]
[310110812,1704349855802,-523.35,0.00033972,2]
[310110813,1704349855811,-416.52,0.00033972,2]
[310110814,1704349855821,-500.0,0.00033972,2]
[310110815,1704349855830,-500.0,0.00033972,2]
[310110816,1704349855840,-500.0,0.00033972,2]
[310110817,1704349855850,-500.0,0.00033972,2]
[310110818,1704349855860,-500.0,0.00033972,2]
[310110819,1704349855869,-500.0,0.00033972,2]
[310110820,1704349855878,-1850.82,0.00033972,2]
[310110821,1704349855888,-500.0,0.00033972,2]
[310110822,1704349855898,-586.0,0.00033972,2]
[310110823,1704349855912,-500.0,0.00033972,2]
[310110824,1704349855921,-500.0,0.00033972,2]
[310110825,1704349855930,-758.71,0.00033972,2]
[310110826,1704349855939,-500.0,0.00033972,2]
[310110827,1704349855949,-500.0,0.00033972,2]
[310110828,1704349855958,-675.04,0.00033972,2]
[310110829,1704349855968,-500.0,0.00033972,2]
[310110830,1704349855977,-604.67,0.00033972,2]
[310110831,1704349855987,-500.0,0.00033972,2]
[310110832,1704349855997,-535.95,0.00033972,2]
[310110833,1704349856007,-500.0,0.00033972,2]
[310110834,1704349856017,-500.0,0.00033972,2]
[310110835,1704349856027,-500.0,0.00033972,2]
[310110836,1704349856037,-570.72,0.00033972,2]
[310110837,1704349856047,-342.13559787,0.00033972,2]
[310110838,1704349856057,-946.49,0.00033972,2]
[310110839,1704349856066,-500.0,0.00033972,2]
[310110840,1704349856076,-513.85,0.00033972,2]
[310110841,1704349856085,-500.0,0.00033972,2]
[310110842,1704349856095,-500.0,0.00033972,2]
[310110843,1704349856105,-500.0,0.00033972,2]
[310110844,1704349856116,-180.99395745,0.00033972,2]
[310110845,1704349856125,-500.0,0.00033972,2]
[310110846,1704349856135,-500.0,0.00033972,2]
[310110847,1704349856145,-500.0,0.00033972,2]
[310110848,1704349856155,-500.0,0.00033972,2]
[310110849,1704349856166,-500.0,0.00033972,2]
[310110850,1704349856175,-7480.22,0.00033972,2]
[310110851,1704349856185,-500.0,0.00033972,2]
[310110852,1704349856195,-500.0,0.00033972,2]
[310110853,1704349856205,-500.0,0.00033972,2]
[310110854,1704349856215,-500.0,0.00033972,2]
[310110855,1704349856225,-503.59,0.00033972,2]
[310110856,1704349856235,-912.18,0.00033972,2]
[310110857,1704349856245,-3398.57,0.00033972,2]
[310110858,1704349856254,-500.0,0.00033972,2]
[310110859,1704349856263,-500.0,0.00033972,2]
[310110860,1704349856273,-500.0,0.00033972,2]
[310110861,1704349856283,-736.91,0.00033972,2]
[310110862,1704349856293,-652.15,0.00033972,2]
[310110863,1704349856302,-500.0,0.00033972,2]
[310110864,1704349856312,-500.0,0.00033972,2]
[310110865,1704349856321,-500.0,0.00033972,2]
[310110866,1704349856332,-500.0,0.00033972,2]
[310110867,1704349856342,-1606.4,0.00033972,2]
[310110868,1704349856351,-563.9,0.00033972,2]
[310110869,1704349856361,-500.0,0.00033972,2]
[310110870,1704349856372,-452.36319472,0.00033972,2]
[310110871,1704349856381,-500.0,0.00033972,2]
[310110872,1704349856391,-1352.7,0.00033972,2]
[310110873,1704349856400,-500.0,0.00033972,2]
[310110874,1704349856410,-4481.83,0.00033972,2]
[310110875,1704349856420,-500.0,0.00033972,2]
[310110876,1704349856429,-500.0,0.00033972,2]
[310110877,1704349856439,-500.0,0.00033972,2]
[310110878,1704349856449,-500.0,0.00033972,2]
[310110879,1704349856459,-500.0,0.00033972,2]
[310110880,1704349856468,-500.0,0.00033972,2]
[310110881,1704349856478,-5182.76,0.00033972,2]
[310110882,1704349856488,-953.44,0.00033972,2]
[310110883,1704349856498,-500.0,0.00033972,2]
[310110884,1704349856508,-500.0,0.00033972,2]
[310110885,1704349856517,-770.89,0.00033972,2]
[310110886,1704349856527,-500.0,0.00033972,2]
[310110887,1704349856536,-500.0,0.00033972,2]
[310110888,1704349856546,-500.0,0.00033972,2]
[310110889,1704349856555,-724.76,0.00033972,2]
[310110890,1704349856565,-500.0,0.00033972,2]
[310110891,1704349856575,-500.0,0.00033972,2]
[310110892,1704349856585,-2404.95,0.00033972,2]
[310110893,1704349856594,-500.0,0.00033972,2]
[310110894,1704349856603,-3912.6,0.00033972,2]
[310110895,1704349856613,-1354.54,0.00033972,2]
[310110896,1704349856623,-2195.14,0.00033972,2]
[310110897,1704349856632,-683.76,0.00033972,2]
[310110898,1704349856642,-2714.72,0.00033972,2]
[310110899,1704349856652,-898.43,0.00033972,2]
[310110900,1704349856662,-500.0,0.00033972,2]
[310110901,1704349856672,-500.0,0.00033972,2]
[310110902,1704349856682,-934.24,0.00033972,2]
[310110903,1704349856691,-500.0,0.00033972,2]
[310110904,1704349856701,-500.0,0.00033972,2]
[310110905,1704349856712,-500.0,0.00033972,2]
[310110906,1704349856721,-1236.58,0.00033972,2]
[310110907,1704349856731,-1981.7,0.00033972,2]
[310110908,1704349856741,-500.0,0.00033972,2]
[310110909,1704349856751,-500.0,0.00033972,2]
[310110910,1704349856761,-1139.34,0.00033972,2]
[310110911,1704349856770,-1117.56,0.00033972,2]
[310110912,1704349856780,-852.6,0.00033972,2]
[310110913,1704349856789,-500.0,0.00033972,2]
[310110914,1704349856800,-408.6783578,0.00033972,2]
[310110915,1704349856810,-748.14,0.00033972,2]
[310110916,1704349856819,-964.4,0.00033972,2]
[310110917,1704349856829,-1575.24,0.00033972,2]
[310110918,1704349856839,-799.05,0.00033972,2]
[310110919,1704349856849,-500.0,0.00033972,2]
[310110920,1704349856858,-3995.77,0.00033972,2]
[310110921,1704349856868,-500.0,0.00033972,2]
[310110922,1704349856878,-500.0,0.00033972,2]
[310110923,1704349856888,-500.0,0.00033972,2]
[310110924,1704349856898,-1339.41,0.00033972,2]
[310110925,1704349856910,-500.0,0.00033972,2]
[310110926,1704349856919,-776.16,0.00033972,2]
[310110927,1704349856928,-500.0,0.00033972,2]
[310110928,1704349856938,-561.55,0.00033972,2]
[310110929,1704349856947,-500.0,0.00033972,5]
[310110930,1704349856957,-500.0,0.00033972,2]
[310110931,1704349856966,-500.0,0.00033972,2]
[310110932,1704349856976,-1296.51,0.00033972,2]
[310110933,1704349856985,-5049.51,0.00033972,2]
[310110934,1704349856995,-652.68,0.00033972,2]
[310110935,1704349857005,-500.0,0.00033972,2]
[310110936,1704349857015,-500.0,0.00033972,2]
[310110937,1704349857025,-500.0,0.00033972,2]
[310110938,1704349857035,-644.93,0.00033972,2]
[310110939,1704349857045,-500.0,0.00033972,2]
[310110940,1704349857055,-500.0,0.00033972,2]
[310110941,1704349857065,-10515.77,0.00033972,2]
[310110942,1704349857075,-500.0,0.00033972,2]
[310110943,1704349857085,-500.0,0.00033972,2]
[310110944,1704349857095,-500.0,0.00033972,2]
[310110945,1704349857105,-5402.63,0.00033972,2]
[310110946,1704349857114,-500.0,0.00033972,2]
[310110947,1704349857124,-624.73,0.00033972,2]
[310110948,1704349857134,-2900.89,0.00033972,2]
[310110949,1704349857144,-2888.68880493,0.00033982,2]
[310110950,1704349857155,-500.0,0.00033987,2]
[310110951,1704349857164,-880.23,0.00033997,2]
[310110952,1704349857174,-2895.27088495,0.00033998,2]
[310110953,1704349857184,-157.40104,0.00033998,2]
[310110954,1704349857194,-500.0,0.00033999,4]
[310110955,1704349857204,-500.0,0.00033999,4]
[310110956,1704349857214,-500.0,0.00033999,4]
[310110957,1704349857223,-450.20828616,0.00033999,4]
[310110958,1704349857233,-160.63183374,0.00033999,4]
[310110959,1704349857243,-500.0,0.00033999,4]
[310110960,1704349857253,-463.80710662,0.00033999,4]
[310110961,1704349857263,-224.0,0.00033999,4]
[310110962,1704349857272,-500.0,0.00033999,4]
[310110963,1704349857282,-500.0,0.00033999,4]
[310110964,1704349857292,-100000.0,0.00034,4]
[310110965,1704349857302,-1000.0,0.00034,4]
[310110966,1704349857311,-1000.0,0.00034,4]
[310110967,1704349857321,-954.0,0.00034,5]
[310110968,1704349857331,-2890.51198354,0.00034,2]
[310110969,1704349857340,-10000.00821146,0.00034,3]
[310110970,1704349857350,-4518.03,0.00034,7]
[310110971,1704349857360,-1141.0,0.00034,9]
[310110972,1704349857541,-6046.27004172,0.00034,2]
[310110973,1704349857551,-2278.4253262,0.00034,2]
[310110974,1704349857560,-1500.0,0.00034,2]
[310110975,1704349857569,-1000.0,0.00034,2]
[310110976,1704349857578,-10256.68351562,0.00034,4]
[310110977,1704349857587,-300.0,0.00034,35]
[310110978,1704349857597,-5000.0,0.00034,7]
[310110979,1704349857606,-800.66648758,0.00034,4]
[310110980,1704349857615,-2205.93256477,0.00034,2]
[310110981,1704349857624,-776.488549,0.00034,3]
[310110982,1704349857633,-1344.4093009,0.00034,7]
[310110983,1704349857643,-58000.0,0.00034,3]
[310110984,1704349857652,-150.37,0.00034,2]
[310110985,1704349857662,-150.37,0.00034,2]
[310110986,1704349857672,-150.37,0.00034,2]
[310110987,1704349857681,-150.37,0.00034,2]
[310110988,1704349857691,-150.37,0.00034,2]
[310110989,1704349857701,-150.37,0.00034,2]
[310110990,1704349857711,-150.37,0.00034,2]
[310110991,1704349857720,-150.37,0.00034,2]
[310110992,1704349857730,-150.37,0.00034,2]
[310110993,1704349857739,-150.37,0.00034,2]
[310110994,1704349857749,-150.37,0.00034,2]
[310110995,1704349857759,-150.37,0.00034,2]
[310110996,1704349857769,-150.37,0.00034,2]
[310110997,1704349857779,-150.37,0.00034,2]
[310110998,1704349857788,-150.37,0.00034,2]
[310110999,1704349857798,-150.37,0.00034,2]
[310111000,1704349857808,-150.37,0.00034,2]
[310111001,1704349857818,-150.37,0.00034,2]
[310111002,1704349857827,-150.37,0.00034,2]
[310111003,1704349857837,-150.37,0.00034,2]
[310111004,1704349857846,-150.37,0.00034,2]
[310111005,1704349857856,-150.37,0.00034,2]
[310111006,1704349857865,-150.37,0.00034,2]
[310111007,1704349857875,-150.37,0.00034,2]
[310111008,1704349857884,-150.37,0.00034,2]
[310111009,1704349857894,-150.37,0.00034,2]
[310111010,1704349857904,-150.37,0.00034,2]
[310111011,1704349857916,-150.37,0.00034,2]
[310111012,1704349857925,-150.37,0.00034,2]
[310111013,1704349857934,-150.37,0.00034,2]
[310111014,1704349857943,-150.37,0.00034,2]
[310111015,1704349857953,-150.37,0.00034,2]
[310111016,1704349857962,-150.37,0.00034,2]
[310111017,1704349857971,-150.37,0.00034,2]
[310111018,1704349857981,-150.37,0.00034,2]
[310111019,1704349857990,-150.37,0.00034,2]
[310111020,1704349858000,-150.37,0.00034,2]
[310111021,1704349858010,-150.37,0.00034,2]
[310111022,1704349858019,-150.37,0.00034,2]
[310111023,1704349858028,-150.37,0.00034,2]
[310111024,1704349858038,-150.37,0.00034,2]
[310111025,1704349858047,-150.37,0.00034,2]
[310111026,1704349858056,-150.37,0.00034,2]
[310111027,1704349858066,-150.37,0.00034,2]
[310111028,1704349858075,-150.37,0.00034,2]
[310111029,1704349858084,-150.37,0.00034,2]
[310111030,1704349858094,-150.37,0.00034,2]
[310111031,1704349858103,-150.37,0.00034,2]
[310111032,1704349858112,-150.37,0.00034,2]
[310111033,1704349858122,-150.37,0.00034,2]
[310111034,1704349858132,-150.37,0.00034,2]
[310111035,1704349858142,-500.0,0.00034014,2]
[310111036,1704349858151,-175.77,0.0003404,2]
[310111037,1704349858162,-223.16,0.00034104,2]
[310111038,1704349858171,-3448.0271994,0.00034107,6]
[310111039,1704349858180,-154.59,0.0003411,2]
[310111040,1704349858190,-1339.21049052,0.00034117,2]
[310111041,1704349858200,-340.4545,0.00034118,2]
[310111042,1704349858210,-1656.43874975,0.00034118,4]
[310111043,1704349858219,-151.0,0.00034118,4]
[310111044,1704349858230,-170649.04082751,0.0003412,2]
[310111045,1704349858239,-932.18372243,0.0003412,2]
[310111046,1704349858248,-157.40104,0.00034198,2]
[310111047,1704349858258,-5389.3686687,0.000342,2]
[310111048,1704349858267,-1105.69,0.00034246,2]
[310111049,1704349858277,-500.0,0.00034246,2]
[310111050,1704349858286,-500.0,0.00034246,2]
[310111051,1704349858295,-500.0,0.00034246,2]
[310111052,1704349858304,-523.01,0.00034246,2]
[310111053,1704349858313,-500.0,0.00034246,2]
[310111054,1704349858323,-1243.37,0.00034246,2]
[310111055,1704349858333,-500.0,0.00034246,2]
[310111056,1704349858342,-500.0,0.00034246,2]
[310111057,1704349858351,-981.28,0.00034246,2]
[310111058,1704349858360,-500.0,0.00034246,2]
[310111059,1704349858369,-500.0,0.00034246,2]
[310111060,1704349858379,-646.70811737,0.00034246,2]